bitfinex/quotes_BTCUSD_20241119
["timestamp","ask_amount","ask_price","bid_price","bid_amount"]
[1732003299585,0.0017092,91685.0,91680.0,0.028]
[1732003299810,0.02033109,91684.0,91680.0,0.028]
[1732003300048,0.02033109,91683.0,91680.0,0.028]
[1732003300268,0.003,91684.0,91680.0,0.028]
[1732003300699,0.02033231,91683.0,91680.0,0.028]
[1732003300919,0.003,91684.0,91680.0,0.028]
[1732003301140,0.02033098,91683.0,91680.0,0.028]
[1732003301370,0.003,91684.0,91677.0,0.109078]
[1732003301583,0.02033576,91683.0,91680.0,0.109074]
[1732003301795,0.0017092,91685.0,91680.0,0.009]
[1732003302007,0.02333596,91684.0,91680.0,0.009]
[1732003302219,0.02033596,91683.0,91680.0,0.037]
[1732003302517,0.0017092,91685.0,91684.0,0.10907]
[1732003302728,0.0017092,91685.0,91684.0,0.13207]
[1732003303409,0.0017092,91685.0,91684.0,0.41963255]
[1732003303648,0.0017092,91685.0,91684.0,0.34113255]
[1732003305228,0.0037092,91685.0,91684.0,0.39713255]
[1732003305438,0.0037092,91685.0,91684.0,0.36913255]
[1732003305649,0.0037092,91685.0,91684.0,0.40390588]
[1732003305861,0.0017092,91685.0,91684.0,0.40390588]
[1732003306070,0.0017092,91685.0,91684.0,0.43190588]
[1732003311191,0.0017092,91685.0,91684.0,0.47970588]
[1732003312734,0.0274188,91692.0,91691.0,0.109061]
[1732003312963,0.0274188,91692.0,91691.0,0.34112355]
[1732003314912,0.0294188,91692.0,91691.0,0.36912355]
[1732003315347,0.0294188,91692.0,91691.0,0.39712355]
[1732003319145,0.0274188,91692.0,91691.0,0.34112355]
[1732003319615,0.0274188,91692.0,91691.0,0.36912355]
[1732003320070,0.0274188,91692.0,91691.0,0.44612355]
[1732003320786,0.0274188,91692.0,91691.0,0.5740167]
[1732003321246,0.0274188,91692.0,91691.0,0.47412355]
[1732003321703,0.0274188,91692.0,91691.0,0.44612355]
[1732003321945,0.0274188,91692.0,91691.0,0.47012355]
[1732003323469,0.0291276,91692.0,91691.0,0.47012355]
[1732003326569,0.0291276,91692.0,91691.0,0.26106255]
[1732003326792,0.0291276,91692.0,91691.0,0.37012355]
[1732003327002,0.11660376,91703.0,91702.0,0.132048]
[1732003327208,0.11660376,91703.0,91702.0,0.24111055]
[1732003327627,0.0017094,91706.0,91703.0,0.132047]
[1732003327831,0.0017094,91706.0,91703.0,0.24110955]
[1732003330078,0.0017094,91706.0,91703.0,0.34110955]
[1732003330303,0.0017094,91706.0,91703.0,0.36910955]
[1732003330531,0.0017094,91706.0,91703.0,0.45170955]
[1732003331023,0.0017094,91706.0,91703.0,0.50710471]
[1732003331474,0.0017094,91706.0,91703.0,0.48710471]
[1732003331688,0.0017094,91706.0,91703.0,0.51510471]
[1732003331897,0.0017094,91706.0,91703.0,0.48710471]
[1732003332107,0.0017094,91706.0,91703.0,0.45910471]
[1732003332316,0.0017094,91706.0,91703.0,0.48710471]
[1732003332974,0.0017094,91706.0,91703.0,0.51510471]
[1732003333185,0.0017094,91706.0,91703.0,0.48710471]
[1732003333438,0.0017094,91706.0,91703.0,0.40450471]
[1732003333878,0.0017094,91706.0,91703.0,0.35350471]
[1732003334094,0.0017094,91706.0,91703.0,0.38150471]
[1732003334742,0.0017094,91706.0,91703.0,0.35350471]
[1732003334997,0.0017094,91706.0,91703.0,0.38150471]
[1732003335438,0.0017094,91706.0,91703.0,0.35350471]
[1732003335639,0.0017094,91706.0,91703.0,0.37650471]
[1732003335859,0.0017094,91706.0,91703.0,0.40450471]
[1732003336100,0.0017094,91706.0,91703.0,0.37650471]
[1732003336513,0.0017094,91706.0,91703.0,0.40450471]
[1732003336716,1.0017086,91704.0,91703.0,0.43250471]
[1732003336954,1.0017086,91704.0,91703.0,0.40450471]
[1732003337173,1.0017086,91704.0,91703.0,0.43250471]
[1732003337843,1.0017086,91704.0,91703.0,0.40450471]
[1732003338050,1.0017086,91704.0,91703.0,0.43250471]
[1732003339164,1.0017086,91704.0,91703.0,0.28806255]
[1732003339373,1.0017086,91704.0,91703.0,0.079]
[1732003339586,1.1294086,91704.0,91703.0,0.079]
[1732003339795,1.1294086,91704.0,91703.0,0.056]
[1732003339796,1.2384546,91704.0,91703.0,0.056]
[1732003340236,1.26078902,91704.0,91703.0,0.056]
[1732003340707,1.26078902,91704.0,91703.0,0.028]
[1732003340927,1.26078902,91704.0,91703.0,0.056]
[1732003341410,1.26079299,91704.0,91703.0,0.028]
[1732003341632,1.26079299,91704.0,91703.0,0.041]
[1732003342073,1.18479299,91704.0,91703.0,0.041]
[1732003342298,1.31733964,91704.0,91703.0,0.013]
[1732003342529,1.31733964,91704.0,91703.0,0.041]
[1732003342747,1.31733964,91704.0,91703.0,0.013]
[1732003342950,0.109057,91695.0,91691.0,0.0008543]
[1732003343173,0.15073839,91694.0,91691.0,0.0008543]
[1732003343394,0.02033839,91693.0,91691.0,0.0008543]
[1732003343643,0.1304,91694.0,91691.0,0.0008543]
[1732003343857,0.02033276,91693.0,91691.0,0.0008543]
[1732003344065,0.1304,91694.0,91691.0,0.0008543]
[1732003344243,0.1304,91694.0,91692.0,0.023]
[1732003345147,0.0781,91701.0,91700.0,0.023]
[1732003345375,0.09843086,91701.0,91700.0,0.023]
[1732003345587,0.09843086,91701.0,91697.0,0.109054]
[1732003345588,0.09843086,91701.0,91698.0,0.023]
[1732003345830,0.02033086,91700.0,91698.0,0.132053]
[1732003346034,0.0781,91701.0,91698.0,0.132053]
[1732003346272,0.02033109,91700.0,91696.0,0.132055]
[1732003346497,0.0781,91701.0,91697.0,0.109054]
[1732003346700,0.0781,91701.0,91700.0,0.051]
[1732003346915,0.09842981,91701.0,91698.0,0.041]
[1732003347120,0.02032981,91700.0,91698.0,0.069]
[1732003347305,0.0781,91701.0,91698.0,0.069]
[1732003347545,0.02032872,91700.0,91696.0,0.023]
[1732003347765,0.0781,91701.0,91698.0,0.023]
[1732003347988,0.0203286,91700.0,91698.0,0.023]
[1732003348209,0.0781,91701.0,91698.0,0.023]
[1732003348647,0.111052,91699.0,91698.0,0.023]
[1732003348899,0.109053,91698.0,91697.0,0.047]
[1732003349117,0.21078036,91698.0,91697.0,0.023]
[1732003349351,0.25948036,91698.0,91697.0,0.023]
[1732003349580,0.14842736,91698.0,91691.0,0.0008543]
[1732003349789,0.14842736,91698.0,91692.0,0.0238542]
[1732003349790,0.002,91695.0,91692.0,0.0238542]
[1732003350031,0.109059,91693.0,91692.0,0.0008542]
[1732003350256,0.1281,91693.0,91692.0,0.0008542]
[1732003351119,0.1281,91693.0,91692.0,0.0238542]
[1732003351326,0.237159,91693.0,91692.0,0.0008542]
[1732003352383,0.237159,91693.0,91692.0,0.0288542]
[1732003352622,0.237159,91693.0,91692.0,0.0528542]
[1732003353069,0.1281,91693.0,91692.0,0.0528542]
[1732003353481,0.237159,91693.0,91692.0,0.0528542]
[1732003353927,0.1281,91693.0,91692.0,0.0758542]
[1732003354466,0.1281,91693.0,91692.0,0.1849142]
[1732003354671,0.1281,91693.0,91692.0,0.0758542]
[1732003355101,0.1281,91693.0,91692.0,0.1849142]
[1732003355314,0.0483,91701.0,91693.0,0.023]
[1732003355540,0.02032672,91700.0,91698.0,0.023]
[1732003355771,0.0483,91701.0,91698.0,0.023]
[1732003356179,0.0483,91701.0,91699.0,0.109052]
[1732003356459,0.0483,91701.0,91698.0,0.023]
[1732003356852,0.0777,91702.0,91698.0,0.023]
[1732003356853,0.05,91702.0,91699.0,0.023]
[1732003357208,0.02032665,91701.0,91699.0,0.023]
[1732003357422,0.05,91702.0,91699.0,0.023]
[1732003357546,0.02032759,91701.0,91699.0,0.023]
[1732003357748,0.05,91702.0,91699.0,0.023]
[1732003357964,0.02032759,91701.0,91699.0,0.023]
[1732003358169,0.05,91702.0,91699.0,0.132052]
[1732003358391,0.02032827,91701.0,91700.0,0.109051]
[1732003358745,0.05,91702.0,91700.0,0.109051]
[1732003358958,0.05,91702.0,91699.0,0.023]
[1732003359181,0.05,91702.0,91700.0,0.10905]
[1732003359401,0.05,91702.0,91701.0,0.13205]
[1732003360258,0.01,91705.0,91703.0,0.109047]
[1732003360652,0.01,91705.0,91701.0,0.132049]
[1732003360890,0.01,91705.0,91701.0,0.066]
[1732003361350,0.02034958,91703.0,91701.0,0.066]
[1732003361585,0.02034958,91702.0,91701.0,0.066]
[1732003362244,0.02034958,91702.0,91692.0,0.0238542]
[1732003362245,0.109052,91700.0,91692.0,0.0238542]
[1732003362462,0.12940158,91699.0,91692.0,0.0238542]
[1732003362685,0.02034958,91698.0,91692.0,0.1329132]
[1732003362930,0.15665,91701.0,91692.0,0.1329132]
[1732003363137,0.02036019,91700.0,91692.0,0.1329132]
[1732003363361,0.0476,91701.0,91692.0,0.0238542]
[1732003363579,0.02035975,91699.0,91692.0,0.1609132]
[1732003363796,0.02035975,91700.0,91694.0,0.023]
[1732003364020,0.109056,91696.0,91694.0,0.023]
[1732003364247,0.109057,91695.0,91693.0,0.023]
[1732003364467,0.02235975,91694.0,91693.0,0.023]
[1732003365102,0.02035975,91694.0,91693.0,0.023]
[1732003365519,0.02235975,91694.0,91693.0,0.023]
[1732003365784,0.12941775,91694.0,91693.0,0.028]
[1732003365997,0.02035975,91694.0,91693.0,0.051]
[1732003366871,0.02035975,91694.0,91693.0,0.074]
[1732003369529,0.05299421,91694.0,91693.0,0.074]
[1732003371220,0.05299421,91694.0,91693.0,0.183059]
[1732003371901,0.02035975,91694.0,91693.0,0.183059]
[1732003372117,0.02325975,91697.0,91694.0,0.023]
[1732003372336,0.03263745,91696.0,91694.0,0.023]
[1732003372550,0.15665,91701.0,91694.0,0.023]
[1732003372551,0.0017086,91701.0,91696.0,0.109055]
[1732003372773,0.03263577,91700.0,91696.0,0.109055]
[1732003372978,0.03263577,91699.0,91696.0,0.109055]
[1732003373218,0.03263577,91698.0,91696.0,0.109055]
[1732003373435,0.0017086,91701.0,91696.0,0.109055]
[1732003373647,0.0326369,91700.0,91696.0,0.109055]
[1732003373897,0.0326369,91699.0,91696.0,0.109055]
[1732003374103,0.0326369,91698.0,91696.0,0.137055]
[1732003374321,0.0017086,91701.0,91696.0,0.157055]
[1732003374578,0.03263713,91697.0,91696.0,0.180055]
[1732003374770,0.03263713,91700.0,91699.0,0.132052]
[1732003374972,0.0017086,91701.0,91698.0,0.023]
[1732003375624,0.0017086,91701.0,91698.0,0.109053]
[1732003375818,0.0017086,91701.0,91699.0,0.023]
[1732003376282,0.0017086,91701.0,91696.0,0.132055]
[1732003376526,0.0017086,91701.0,91699.0,0.023]
[1732003377198,0.0017086,91701.0,91699.0,0.051]
[1732003377400,0.0017086,91701.0,91699.0,0.068]
[1732003377820,0.0017086,91701.0,91699.0,0.04]
[1732003378772,0.0017086,91701.0,91700.0,0.109051]
[1732003378972,0.0017086,91701.0,91700.0,0.132051]
[1732003379819,0.0017086,91701.0,91700.0,0.148051]
[1732003381867,0.0017086,91701.0,91700.0,0.176051]
[1732003382519,0.0017086,91701.0,91700.0,0.17556911]
[1732003382747,0.0017086,91701.0,91700.0,0.067]
[1732003383173,0.2395586,91701.0,91700.0,0.044]
[1732003383438,0.16116394,91701.0,91700.0,0.044]
[1732003383912,0.27021394,91701.0,91700.0,0.044]
[1732003384123,0.29064787,91701.0,91700.0,0.044]
[1732003384329,0.18159787,91701.0,91700.0,0.044]
[1732003385630,0.18159787,91701.0,91700.0,0.0448543]
[1732003385843,0.18359787,91701.0,91700.0,0.0448543]
[1732003386059,0.2395586,91701.0,91700.0,0.0448543]
[1732003387106,0.1635586,91701.0,91700.0,0.0448543]
[1732003387949,0.18197677,91701.0,91700.0,0.0448543]
[1732003389238,0.18397677,91701.0,91700.0,0.0448543]
[1732003389447,0.18197677,91701.0,91700.0,0.0448543]
[1732003389903,0.18397677,91701.0,91700.0,0.0448543]
[1732003390109,0.18197677,91701.0,91700.0,0.0448543]
[1732003390316,0.18397677,91701.0,91700.0,0.0448543]
[1732003395588,0.95250702,91701.0,91700.0,0.0358543]
[1732003395798,0.70746244,91701.0,91700.0,0.0358543]
[1732003396003,0.74295947,91701.0,91700.0,0.0358543]
[1732003396462,0.87088298,91701.0,91700.0,0.0358543]
[1732003396676,0.87085145,91701.0,91700.0,0.0078543]
[1732003396882,0.87085145,91701.0,91700.0,0.0288543]
[1732003397094,0.87256005,91701.0,91700.0,0.0338543]
[1732003397306,0.81950609,91701.0,91700.0,0.0058543]
[1732003397522,0.83991131,91701.0,91700.0,0.0058543]
[1732003397726,0.83991131,91701.0,91700.0,0.0338543]
[1732003397948,0.87255966,91701.0,91700.0,0.0338543]
[1732003401029,0.87247418,91701.0,91700.0,0.0338543]
[1732003402064,0.79647418,91701.0,91700.0,0.0338543]
[1732003402504,0.79647418,91701.0,91700.0,0.0336133]
[1732003403167,0.79384282,91701.0,91700.0,0.0336133]
[1732003403369,0.79584282,91701.0,91700.0,0.0336133]
[1732003405141,0.92184282,91701.0,91700.0,0.0336133]
[1732003405337,1.11739927,91701.0,91700.0,0.0336133]
[1732003405753,0.98947576,91701.0,91700.0,0.0336133]
[1732003405972,1.11739927,91701.0,91700.0,0.0336133]
[1732003406442,1.11539927,91701.0,91700.0,0.0336133]
[1732003406665,0.91984282,91701.0,91700.0,0.0336133]
[1732003407502,0.92184282,91701.0,91700.0,0.0336133]
[1732003408182,0.9216044,91701.0,91700.0,0.0336133]
[1732003408846,1.16401398,91701.0,91700.0,0.0336133]
[1732003409181,0.9216044,91701.0,91700.0,0.0336133]
[1732003410786,0.9196044,91701.0,91700.0,0.0336133]
[1732003411847,0.8340458,91701.0,91693.0,0.0008543]
[1732003412126,0.24698151,91694.0,91693.0,0.0008543]
[1732003412329,0.2999496,91694.0,91693.0,0.0008543]
[1732003412534,0.2999496,91694.0,91693.0,0.00061338]
[1732003412898,0.3019496,91694.0,91693.0,0.01261338]
[1732003413567,0.39962416,91694.0,91693.0,0.00061338]
[1732003413724,0.41901215,91694.0,91693.0,0.01261338]
[1732003413931,0.42101215,91694.0,91693.0,0.01261338]
[1732003414222,0.784562,91694.0,91693.0,0.03661338]
[1732003414593,0.97992659,91694.0,91693.0,0.03661338]
[1732003415223,0.784562,91694.0,91693.0,0.02461338]
[1732003415648,0.781562,91694.0,91693.0,0.00061338]
[1732003415874,0.808562,91694.0,91693.0,0.00061338]
[1732003416085,0.934662,91694.0,91693.0,0.00161338]
[1732003416281,0.96867789,91694.0,91693.0,0.00161338]
[1732003416493,0.96867789,91694.0,91693.0,0.00061338]
[1732003416695,0.96867789,91694.0,91693.0,0.00261338]
[1732003416906,0.65852883,91694.0,91693.0,0.00261338]
[1732003417716,0.76758683,91694.0,91693.0,0.00261338]
[1732003417945,0.77758683,91694.0,91693.0,0.00261338]
[1732003418150,1.13793229,91694.0,91693.0,0.00261338]
[1732003418349,0.99149038,91694.0,91693.0,0.00261338]
[1732003418558,1.29674626,91694.0,91693.0,0.00261338]
[1732003418763,1.10149038,91694.0,91693.0,0.00261338]
[1732003419941,1.08849038,91694.0,91693.0,0.00061338]
[1732003420056,1.09649038,91694.0,91693.0,0.00261338]
[1732003420292,1.3404419,91694.0,91693.0,0.00261338]
[1732003420713,1.3134419,91694.0,91693.0,0.00261338]
[1732003421113,1.09649038,91694.0,91693.0,0.00461338]
[1732003421604,1.09649038,91694.0,91693.0,0.00261338]
[1732003421605,1.08849038,91694.0,91693.0,0.00261338]
[1732003421811,1.11549038,91694.0,91693.0,0.00461338]
[1732003421984,1.3594419,91694.0,91693.0,0.00461338]
[1732003422390,1.11549038,91694.0,91693.0,0.00461338]
[1732003422748,1.11549038,91694.0,91693.0,0.00437247]
[1732003422951,1.35939065,91694.0,91693.0,0.00437247]
[1732003423168,1.35918863,91694.0,91693.0,0.00437247]
[1732003423384,1.3591698,91694.0,91693.0,0.00437247]
[1732003424194,1.35917914,91694.0,91693.0,0.00437247]
[1732003425996,1.18723974,91694.0,91693.0,0.00437247]
[1732003426161,0.53803999,91694.0,91693.0,0.00437247]
[1732003426585,0.61900969,91694.0,91693.0,0.00437247]
[1732003426815,0.89819151,91694.0,91693.0,0.004]
[1732003427042,0.22106,91692.0,91691.0,0.0008543]
[1732003427249,0.39307229,91692.0,91691.0,0.0008543]
[1732003428126,0.42007229,91692.0,91691.0,0.0028543]
[1732003428345,0.44707229,91692.0,91691.0,0.0048543]
[1732003428560,0.52804199,91692.0,91691.0,0.0048543]
[1732003428814,0.23800974,91692.0,91691.0,0.0048543]
[1732003429034,0.27061355,91692.0,91691.0,0.0048543]
[1732003429474,0.23800974,91692.0,91691.0,0.0048543]
[1732003429674,0.21100974,91692.0,91691.0,0.0028543]
[1732003429885,0.2407364,91692.0,91691.0,0.0048543]
[1732003430108,0.21104472,91692.0,91691.0,0.0028543]
[1732003430324,0.21104472,91692.0,91691.0,0.0048543]
[1732003430325,0.24077138,91692.0,91691.0,0.0048543]
[1732003430535,0.21104472,91692.0,91691.0,0.0028543]
[1732003430749,0.21377137,91692.0,91691.0,0.0028543]
[1732003430965,0.23977137,91692.0,91691.0,0.0048543]
[1732003431175,0.21004472,91692.0,91691.0,0.0028543]
[1732003431377,0.21277137,91692.0,91691.0,0.0028543]
[1732003431590,0.23977137,91692.0,91691.0,0.0048543]
[1732003431791,0.23704472,91692.0,91691.0,0.0048543]
[1732003432005,0.11798472,91692.0,91691.0,0.0048543]
[1732003432208,0.22977137,91692.0,91691.0,0.0048543]
[1732003432413,0.10598472,91692.0,91691.0,0.16760831]
[1732003432631,0.10598472,91692.0,91691.0,0.11319315]
[1732003432890,0.10598472,91692.0,91691.0,0.12713215]
[1732003433248,0.10598472,91692.0,91691.0,0.23619315]
[1732003433789,0.04737874,91692.0,91691.0,0.23419315]
[1732003433989,0.04737874,91692.0,91691.0,0.26019315]
[1732003433990,0.05037874,91692.0,91691.0,0.26019315]
[1732003434458,0.02337874,91692.0,91691.0,0.25819315]
[1732003434652,0.02437874,91692.0,91691.0,0.27119315]
[1732003435007,0.02337874,91692.0,91691.0,0.25819315]
[1732003435458,0.02437874,91692.0,91691.0,0.27419315]
[1732003435707,0.02437874,91692.0,91691.0,0.29719315]
[1732003436553,0.02437874,91692.0,91691.0,0.33262975]
[1732003436730,0.004,91692.0,91691.0,0.33262975]
[1732003437805,0.003,91692.0,91691.0,0.31662975]
[1732003438249,0.0017094,91694.0,91693.0,0.132059]
[1732003438459,0.0017094,91694.0,91693.0,0.261159]
[1732003441010,0.0220689,91694.0,91693.0,0.261159]
[1732003441215,0.0220689,91694.0,91693.0,0.300159]
[1732003441635,0.0220689,91694.0,91693.0,0.272159]
[1732003441849,0.0220689,91694.0,91693.0,0.261159]
[1732003442079,0.0220689,91694.0,91693.0,0.273159]
[1732003442254,0.0017094,91694.0,91693.0,0.273159]
[1732003442468,0.0017094,91694.0,91693.0,0.289159]
[1732003442614,0.0017094,91694.0,91693.0,0.317159]
[1732003442813,0.0017094,91694.0,91693.0,0.3180137]
[1732003443254,0.0017094,91694.0,91693.0,0.2089547]
[1732003443503,0.1107674,91694.0,91693.0,0.0568547]
[1732003443709,0.14111895,91694.0,91693.0,0.0288547]
[1732003443913,0.109067,91687.0,91679.0,0.109075]
[1732003444295,0.109067,91687.0,91680.0,0.109074]
[1732003444995,0.109067,91687.0,91675.0,0.218161]
[1732003444996,0.109067,91687.0,91679.0,0.109075]
[1732003445187,0.110067,91687.0,91680.0,0.109074]
[1732003445729,0.109077,91679.0,91671.0,0.109085]
[1732003445982,0.109077,91679.0,91666.0,0.1]
[1732003445983,0.0809697,91686.0,91680.0,0.026]
[1732003446182,0.16347616,91682.0,91681.0,0.023]
[1732003446418,0.16347616,91682.0,91680.0,0.026]
[1732003446419,0.02034744,91682.0,91680.0,0.026]
[1732003446627,0.109069,91685.0,91680.0,0.026]
[1732003446854,0.02034797,91684.0,91681.0,0.1227]
[1732003447085,0.001,91687.0,91682.0,0.023]
[1732003447319,0.001,91687.0,91686.0,0.109067]
[1732003447520,0.16347616,91692.0,91685.0,0.023]
[1732003448000,0.0017086,91701.0,91693.0,0.109059]
[1732003449098,0.0017086,91701.0,91693.0,0.192059]
[1732003449966,0.0017086,91701.0,91693.0,0.240559]
[1732003450824,0.0017086,91701.0,91693.0,0.291559]
[1732003451043,0.0027094,91694.0,91693.0,0.291559]
[1732003451257,0.0017094,91694.0,91693.0,0.263559]
[1732003451468,0.0087094,91694.0,91693.0,0.291559]
[1732003451978,0.0027094,91694.0,91693.0,0.291559]
[1732003452206,0.0047094,91694.0,91693.0,0.291559]
[1732003452643,0.0047094,91694.0,91693.0,0.29107711]
[1732003454038,0.0047094,91694.0,91693.0,0.40013966]
[1732003457322,0.0047094,91694.0,91693.0,0.43485526]
[1732003460378,0.0037094,91694.0,91693.0,0.40685526]
[1732003460598,0.0017094,91694.0,91693.0,0.40685526]
[1732003461058,0.0047094,91694.0,91693.0,0.44985526]
[1732003461300,0.0047094,91694.0,91693.0,0.42185526]
[1732003461523,0.0017094,91694.0,91693.0,0.43485526]
[1732003461743,0.0047094,91694.0,91693.0,0.44985526]
[1732003462196,0.09389416,91703.0,91702.0,0.256748]
[1732003462415,0.09389416,91703.0,91702.0,0.36581055]
[1732003462622,1.0257086,91704.0,91703.0,0.132047]
[1732003462845,1.0257086,91704.0,91703.0,0.24110955]
[1732003464317,1.0257086,91704.0,91703.0,0.13206255]
[1732003464535,1.0257086,91704.0,91703.0,0.24110955]
[1732003464751,1.0277086,91704.0,91703.0,0.25710955]
[1732003464957,1.0277086,91704.0,91703.0,0.28510955]
[1732003466951,1.0277086,91704.0,91703.0,0.38510955]
[1732003470996,1.0277086,91704.0,91703.0,0.42113997]
[1732003472656,1.0277086,91704.0,91703.0,0.42089897]
[1732003473323,1.0277086,91704.0,91703.0,0.43089897]
[1732003474175,1.0257086,91704.0,91703.0,0.46079897]
[1732003474389,1.0257086,91704.0,91703.0,0.53679897]
[1732003474616,1.01051591,91704.0,91703.0,0.63567307]
[1732003475294,1.01051591,91704.0,91703.0,0.60767307]
[1732003475714,1.00751591,91704.0,91703.0,0.58967307]
[1732003476143,1.00751591,91704.0,91703.0,0.64367307]
[1732003476575,1.00751591,91704.0,91703.0,0.61767307]
[1732003476792,1.00751591,91704.0,91703.0,0.63867307]
[1732003477450,1.00751591,91704.0,91703.0,0.61067307]
[1732003477657,1.00751591,91704.0,91703.0,0.63867307]
[1732003477862,1.00751591,91704.0,91703.0,0.63952767]
[1732003478109,0.93151591,91704.0,91703.0,0.63952767]
[1732003480009,0.93151591,91704.0,91703.0,0.66092517]
[1732003481824,0.93151591,91704.0,91703.0,0.58005107]
[1732003482049,0.93151591,91704.0,91703.0,0.63952767]
[1732003482956,0.93151591,91704.0,91703.0,0.61852767]
[1732003483170,0.93151591,91704.0,91703.0,0.64552767]
[1732003483605,0.93151591,91704.0,91703.0,0.59052767]
[1732003484042,0.93151591,91704.0,91703.0,0.61852767]
[1732003484280,0.93151591,91704.0,91703.0,0.59052767]
[1732003484712,0.93151591,91704.0,91703.0,0.61852767]
[1732003484931,0.93151591,91704.0,91703.0,0.63452767]
[1732003485149,0.93151591,91704.0,91703.0,0.51262767]
[1732003486720,0.93151591,91704.0,91703.0,0.42175357]
[1732003487869,0.93151591,91704.0,91703.0,0.40575357]
[1732003488083,0.93151591,91704.0,91703.0,0.37775357]
[1732003488327,0.93151591,91704.0,91703.0,0.42175357]
[1732003488795,0.93151591,91704.0,91703.0,0.40575357]
[1732003489010,0.93151591,91704.0,91703.0,0.41675357]
[1732003489447,0.93151591,91704.0,91703.0,0.40575357]
[1732003489880,0.93151591,91704.0,91703.0,0.38875357]
[1732003490147,0.93151591,91704.0,91703.0,0.41675357]
[1732003491908,0.85551591,91704.0,91703.0,0.41675357]
[1732003492134,0.85551591,91704.0,91703.0,0.49762767]
[1732003496121,0.85551591,91704.0,91703.0,0.58850177]
[1732003496553,0.85551591,91704.0,91703.0,0.50762767]
[1732003497625,0.85551591,91704.0,91703.0,0.58850177]
[1732003499787,0.85551591,91704.0,91703.0,0.50762767]
[1732003500029,0.85551591,91704.0,91703.0,0.58850177]
[1732003500481,0.85551591,91704.0,91703.0,0.50762767]
[1732003500692,0.85551591,91704.0,91703.0,0.58850177]
[1732003500918,0.85551591,91704.0,91703.0,0.50762767]
[1732003504144,0.85551591,91704.0,91703.0,0.42675357]
[1732003504361,0.85551591,91704.0,91703.0,0.50762767]
[1732003505896,0.85551591,91704.0,91703.0,0.68629353]
[1732003506125,0.85551591,91704.0,91703.0,0.86028941]
[1732003506336,0.85551591,91704.0,91703.0,0.71360177]
[1732003506788,0.85551591,91704.0,91703.0,0.63272767]
[1732003507014,0.77951591,91704.0,91703.0,0.62172767]
[1732003507455,0.77951591,91704.0,91703.0,0.64772767]
[1732003507925,0.77951591,91704.0,91703.0,0.62172767]
[1732003508139,0.77951591,91704.0,91703.0,0.79643926]
[1732003508352,0.77951591,91704.0,91703.0,0.81532656]
[1732003508561,0.77951591,91704.0,91703.0,0.69661497]
[1732003508996,0.77951591,91704.0,91703.0,0.84332656]
[1732003509652,0.77951591,91704.0,91703.0,0.69661497]
[1732003509870,0.77951591,91704.0,91703.0,0.84332656]
[1732003511244,0.77951591,91704.0,91703.0,0.69661497]
[1732003512555,0.75770691,91704.0,91703.0,0.69661497]
[1732003512780,0.67047091,91704.0,91703.0,0.69661497]
[1732003513481,0.60504391,91704.0,91703.0,0.69661497]
[1732003513692,0.56142591,91704.0,91703.0,0.69661497]
[1732003513899,0.56142591,91704.0,91703.0,0.89209531]
[1732003514117,0.56142591,91704.0,91703.0,0.86409531]
[1732003514346,0.51351457,91704.0,91703.0,0.86409531]
[1732003514574,0.42627857,91704.0,91703.0,0.64061497]
[1732003514783,0.40446957,91704.0,91703.0,1.36861497]
[1732003514994,0.40446957,91704.0,91703.0,1.34061497]
[1732003515204,0.36015629,91704.0,91703.0,1.34061497]
[1732003515412,0.33834729,91704.0,91703.0,1.39661497]
[1732003515626,0.25111129,91704.0,91703.0,1.39661497]
[1732003516109,0.25111129,91704.0,91703.0,1.36861497]
[1732003516332,0.25111129,91704.0,91703.0,1.39661497]
[1732003518530,0.22930229,91704.0,91703.0,1.39661497]
[1732003519849,0.22930229,91704.0,91703.0,1.41809399]
[1732003520272,0.20749329,91704.0,91703.0,1.41809399]
[1732003520501,0.16387529,91704.0,91703.0,1.41809399]
[1732003520713,0.09844829,91704.0,91703.0,1.41809399]
[1732003520930,0.07663929,91704.0,91703.0,1.41809399]
[1732003521624,0.03302129,91704.0,91703.0,1.61335513]
[1732003521852,2.9e-07,91704.0,91703.0,1.41809399]
[1732003522081,0.16347616,91717.0,91716.0,0.242032]
[1732003522301,0.08918585,91727.0,91726.0,0.13202]
[1732003522556,0.08918585,91727.0,91726.0,0.24108255]
[1732003522768,0.0017106,91729.0,91726.0,0.24108255]
[1732003522769,0.0017106,91729.0,91728.0,0.132017]
[1732003522998,0.0017106,91729.0,91728.0,0.34107955]
[1732003525240,0.0017106,91729.0,91728.0,0.35707955]
[1732003525689,0.0017106,91729.0,91728.0,0.38507955]
[1732003527002,0.0017106,91729.0,91728.0,0.42075137]
[1732003530871,0.0017106,91729.0,91728.0,0.38507955]
[1732003531094,0.0017106,91729.0,91728.0,0.044]
[1732003531095,0.1292106,91729.0,91728.0,0.044]
[1732003531958,0.1312106,91729.0,91728.0,0.028]
[1732003532391,0.1312106,91729.0,91728.0,0.008]
[1732003532685,0.1312106,91729.0,91728.0,0.036]
[1732003532914,0.1312106,91729.0,91728.0,0.028]
[1732003532915,0.1292106,91729.0,91728.0,0.028]
[1732003533615,0.1292106,91729.0,91728.0,0.137017]
[1732003534070,0.1292106,91729.0,91728.0,0.138017]
[1732003537245,0.0532106,91729.0,91728.0,0.138017]
[1732003538127,0.0532106,91729.0,91728.0,0.029]
[1732003538339,0.0532106,91729.0,91728.0,0.138017]
[1732003538549,0.0532106,91729.0,91728.0,0.029]
[1732003539017,0.0532106,91729.0,91728.0,0.138017]
[1732003539485,0.0532106,91729.0,91728.0,0.029]
[1732003539705,0.0478,91729.0,91728.0,0.24184941]
[1732003539936,0.0017104,91736.0,91735.0,0.109009]
[1732003540151,0.0017104,91736.0,91735.0,0.132009]
[1732003541038,0.0027104,91736.0,91735.0,0.132009]
[1732003541474,0.0027104,91736.0,91735.0,0.160009]
[1732003541693,0.0017104,91736.0,91735.0,0.160009]
[1732003541927,0.0027104,91736.0,91735.0,0.132009]
[1732003542138,0.0027104,91736.0,91735.0,0.160009]
[1732003545238,0.0027104,91736.0,91735.0,0.34990396]
[1732003547288,0.0017104,91736.0,91735.0,0.34990396]
[1732003547501,0.0017104,91736.0,91735.0,0.35790396]
[1732003548172,0.0017104,91736.0,91735.0,0.42990396]
[1732003548487,0.0017104,91736.0,91735.0,0.45790396]
[1732003551970,0.14985871,91752.0,91751.0,0.10899]
[1732003552186,0.1513155,91752.0,91751.0,0.10899]
[1732003552451,0.04845679,91752.0,91751.0,0.10899]
[1732003552876,0.04845679,91752.0,91751.0,0.10850808]
[1732003553311,0.118993,91749.0,91738.0,0.023]
[1732003553547,0.13145679,91748.0,91744.0,0.108998]